[Event "Croatian Championship 2022"]
[Site "Split"]
[Date "2022.11.29"]
[Round "1.5"]
[White "Saric, Ante"]
[Black "Kurajica, Bojan"]
[Result "1-0"]
[ECO "E16"]
[WhiteElo "2504"]
[BlackElo "2487"]
[Annotator "TA"]
[PlyCount "69"]
[EventDate "2022.11.29"]
[EventType "tourn"]
[EventCountry "CRO"]
[SourceTitle "playchess.com"]
[Source "ChessBase"]
[SourceQuality "1"]
[TimeControl "40/5400+30:1800+30"]

{[%evp 18,69,24,23,43,38,58,44,53,50,74,61,51,45,59,53,52,46,49,45,44,44,39,44,50,22,24,25,25,17,33,42,52,28,74,60,202,188,261,277,326,331,325,335,307,300,380,367,380,369,542,555,483,487]} 1. d4 {[%emt 0:00:05]} Nf6 {[%emt 0:00:16]} 2. c4 {[%emt 0:00:08]} e6 {[%emt 0:00:06]} 3. g3 {[%emt 0:00:05]} Bb4+ {[%emt 0:00:44]} 4. Bd2 {[%emt 0:00:07]} Bxd2+ {[%emt 0:02:15]} 5. Qxd2 {[%emt 0:00:08]} O-O {[%emt 0:00:20]} 6. Bg2 {[%emt 0:01:18]} d5 {[%emt 0:03:21]} 7. Nf3 {[%emt 0:03:11]} b6 {[%emt 0:04:12]} 8. cxd5 {[%emt 0:01:45]} exd5 {[%emt 0:00:06]} 9. Nc3 {[%emt 0:00:23]} Bb7 {[%emt 0:03:39]} 10. O-O {[%emt 0:04:04]} Nc6 {[%emt 0:04:48] [#] E16: Queen's Indian: 4 g3 Bb7 5 Bg2 Bb4+.} 11. Ne5 $146 {[%emt 0:12:56]} ({Predecessor:} 11. Rfd1 Re8 12. Qc2 Ne4 13. e3 Nxc3 14. Qxc3 Qd6 15. Rac1 Re7 16. Ne1 Nd8 17. Nd3 a5 18. h4 {1-0 (63) Pranav,A (2416)-Fernandez,M (2229) Sitges 2021}) 11... Ne7 {[%emt 0:01:19]} 12. Rac1 {[%emt 0:03:35]} a6 {[%emt 0:03:20] White is slightly better.} 13. Rc2 {[%emt 0:06:33]} Ra7 {[%emt 0:19:10]} 14. e3 {[%emt 0:13:21] White is much more active. The black rooks are badly placed.} Qd6 {[%emt 0:02:41]} 15. b3 {[%emt 0:05:50]} Rd8 {[%emt 0:05:14]} 16. Rfc1 {[%emt 0:06:01]} Bc8 {[%emt 0:04:20]} 17. Ne2 {[%emt 0:02:25]} Bf5 {[%emt 0:08:37] [#]} 18. Rc6 {[%emt 0:01:09]} Nxc6 {[%emt 0:00:16]} 19. Nxc6 {[%emt 0:00:05]} Raa8 {[%emt 0:02:56]} 20. Nxd8 {[%emt 0:00:15]} Rxd8 {[%emt 0:00:22]} 21. Qc3 {[%emt 0:01:44]} Rc8 {[%emt 0:02:31]} 22. b4 {[%emt 0:12:02]} c6 {[%emt 0:07:19]} 23. a4 {[%emt 0:06:21][%cal Ba2a4,Ba4a5][%mdl 32]} g5 {[%emt 0:03:50]} 24. a5 $36 {[%emt 0:01:13][%mdl 2048] White is more active.} b5 {[%emt 0:00:44]} 25. Qc5 {[%emt 0:02:23]} Qd8 {[%emt 0:05:26]} (25... Qd7 $11) 26. Qa7 $16 {[%emt 0:03:58]} Nd7 {[%emt 0:06:53] This costs Black the game.} (26... Ra8 $14 27. Qb7 Bd7) 27. Qxa6 $18 {[%emt 0:01:45]} Bd3 {[%emt 0:02:42]} (27... Nb8 $142 28. Qb6 Kg7) 28. Rxc6 {[%emt 0:11:40]} Ra8 {[%emt 0:02:18]} 29. Qb7 {[%emt 0:00:00]} Bxe2 {[%emt 0:00:16]} 30. Bxd5 {[%emt 0:00:00]} Rb8 {[%emt 0:00:34]} 31. Qc7 {[%emt 0:00:00]} Qxc7 {[%emt 0:00:45]} 32. Rxc7 {[%emt 0:00:00]} Nf6 {[%emt 0:00:17]} 33. Bxf7+ {[%emt 0:00:00]} Kf8 {[%emt 0:01:55]} (33... Kh8 $142 34. e4 Bf3) 34. Be6 {[%emt 0:00:00]} Ke8 {[%emt 0:00:25]} 35. Rf7 {[%emt 0:00:00] Weighted Error Value: White=0.04 (flawless) /Black=0.33} 1-0

[Event "Croatian Championship 2022"]
[Site "Split"]
[Date "2022.11.29"]
[Round "1.6"]
[White "Jovanovic, Zoran"]
[Black "Stevic, Hrvoje"]
[Result "1/2-1/2"]
[ECO "B10"]
[WhiteElo "2513"]
[BlackElo "2543"]
[Annotator "TA"]
[PlyCount "44"]
[EventDate "2022.11.29"]
[EventType "tourn"]
[EventCountry "CRO"]
[SourceTitle "playchess.com"]
[Source "ChessBase"]
[SourceQuality "1"]
[TimeControl "40/5400+30:1800+30"]

{[%evp 9,44,0,18,-13,10,0,0,0,20,0,0,5,0,7,7,0,0,0,-7,0,-3,-14,-10,-19,0,0,0,0,0,-7,-7,-7,0,0,0,-5,-8]} 1. e4 {[%emt 0:00:05]} c6 {[%emt 0:00:14]} 2. d3 {[%emt 0:00:07]} d5 {[%emt 0:00:06]} 3. Nf3 {[%emt 0:00:04]} dxe4 {[%emt 0:00:25]} 4. dxe4 {[%emt 0:00:06]} Qxd1+ {[%emt 0:00:06]} 5. Kxd1 {[%emt 0:00:06]} Nd7 {[%emt 0:00:11] The position is equal.} 6. Nbd2 {[%emt 0:00:10] B10: Caro-Kann: 2 d3 and 2 c4.} e5 {[%emt 0:00:37]} 7. Bc4 {[%emt 0:00:34]} f6 {[%emt 0:00:49]} 8. a4 {[%emt 0:00:09] [#] Inhibits b5.} Nc5 $146 {[%emt 0:00:38]} ({Predecessor:} 8... Nh6 9. h3 Nf7 10. c3 Nd6 11. Bd3 Nc5 12. Bc2 a5 13. Re1 Be6 14. b3 O-O-O {½-½ (70) Vasquez Schroder,R (2506)-Solovchuk,A (2303) Chess.com INT 2022}) 9. Ke2 {[%emt 0:02:04]} a5 {[%emt 0:02:06]} 10. Ne1 {[%emt 0:01:00]} Nh6 {[%emt 0:00:14]} 11. Nd3 {[%emt 0:00:39]} Nf7 {[%emt 0:00:31]} 12. Nxc5 {[%emt 0:00:28]} Bxc5 {[%emt 0:00:05]} 13. Nb3 {[%emt 0:00:06]} Bb6 {[%emt 0:00:04]} 14. Rd1 {[%emt 0:00:03] Inhibits Nd6.} Ke7 {[%emt 0:01:30]} 15. Bxf7 {[%emt 0:04:32]} (15. f3 {keeps more tension.} g6 16. Nd2 Rd8 17. Ba2) 15... Kxf7 {[%emt 0:00:11]} 16. Be3 {[%emt 0:00:02]} Bxe3 {[%emt 0:01:44]} 17. Kxe3 {[%emt 0:00:14]} Ke7 {[%emt 0:00:02] Prevents Rd6.} 18. Rd2 {[%emt 0:00:53]} b6 {[%emt 0:00:16]} 19. Rad1 {[%emt 0:00:34]} Be6 {[%emt 0:00:07]} 20. Nc1 {[%emt 0:00:52]} Rhd8 {[%emt 0:00:06]} 21. Rxd8 {[%emt 0:02:03]} Rxd8 {[%emt 0:00:06]} 22. Rxd8 {[%emt 0:00:02]} Kxd8 {[%emt 0:00:06] Not much happened in this game.   Weighted Error Value: White=0.06 (flawless) /Black=0.05 (flawless)} 1/2-1/2

[Event "Croatian Championship 2022"]
[Site "Split"]
[Date "2022.11.30"]
[Round "2.1"]
[White "Martinovic, Sasa"]
[Black "Stevic, Hrvoje"]
[Result "1/2-1/2"]
[ECO "D27"]
[WhiteElo "2557"]
[BlackElo "2543"]
[Annotator "TA"]
[PlyCount "47"]
[EventDate "2022.11.29"]
[EventType "tourn"]
[EventCountry "CRO"]
[SourceTitle "playchess.com"]
[Source "ChessBase"]
[SourceQuality "1"]
[TimeControl "40/5400+30:1800+30"]

{[%evp 15,47,0,0,22,11,24,14,0,11,17,14,0,-10,0,0,0,0,0,0,0,0,0,0,0,0,0,0,0,0,0,0,0,0,0]} 1. d4 {[%emt 0:01:25] Rogozenco,Dorian} d5 {[%emt 0:00:09]} 2. c4 {[%emt 0:00:05]} dxc4 {[%emt 0:00:10]} 3. Nf3 {[%emt 0:00:05]} Nf6 {[%emt 0:00:11]} 4. e3 {[%emt 0:00:03]} e6 {[%emt 0:00:15]} 5. Bxc4 {[%emt 0:00:03]} c5 {[%emt 0:00:20]} 6. O-O {[%emt 0:00:04]} a6 {[%emt 0:00:10]} 7. Bd3 {[%emt 0:00:29]} Nbd7 {[%emt 0:00:49]} 8. Re1 {[%emt 0:00:11] 8.e4 is the modern continuation.} b5 {[%emt 0:00:16]} 9. a4 {[%emt 0:00:22] D27: Queen's Gambit Accepted: Classical main line: 7 e4!? and 7 a4.} bxa4 {[%emt 0:00:15]} 10. Rxa4 {[%emt 0:00:20]} cxd4 {[%emt 0:00:12]} 11. Rxd4 {[%emt 0:00:22] [#] The position is equal.} Bc5 $146 {[%emt 0:00:18]} ({Predecessor:} 11... Bb7 12. Nc3 Bc5 13. Rh4 Be7 14. Qe2 Nd5 15. Rh3 Nxc3 16. bxc3 Qc7 17. e4 Nc5 {½-½ (30) Radjabov,T (2740)-Nisipeanu,L (2672) Medias 2010 CBM 137 [Rogozenco,Dorian]}) 12. Rh4 {[%emt 0:00:23]} Bb7 {[%emt 0:00:13]} 13. b3 {[%emt 0:00:22]} Bxf3 {[%emt 0:00:15]} 14. gxf3 {[%emt 0:00:06]} Ne5 {[%emt 0:00:13]} 15. Be2 {[%emt 0:00:06]} O-O {[%emt 0:00:11]} 16. Qxd8 {[%emt 0:00:20]} Rfxd8 {[%emt 0:00:10]} 17. Ra4 {[%emt 0:00:12]} Rab8 {[%emt 0:00:18]} 18. Bb2 {[%emt 0:00:43]} Nd3 {[%emt 0:00:19]} 19. Bxf6 {[%emt 0:00:18]} gxf6 {[%emt 0:00:12]} ({Don't play} 19... Nxe1 20. Bxd8 Rxd8 21. Rxa6 $14) 20. Rd1 {[%emt 0:00:17]} Rxb3 {[%emt 0:00:17]} 21. Rxa6 {[%emt 0:00:19]} Kg7 {[%emt 0:00:12]} 22. Bxd3 {[%emt 0:00:03]} Rbxd3 {[%emt 0:00:07]} 23. Rxd3 {[%emt 0:00:02]} Rxd3 {[%emt 0:00:10]} 24. Kg2 $1 {[%emt 0:00:03] An interesting draw.   Weighted Error Value: White=0.01 (flawless) /Black=0.00 (flawless)} 1/2-1/2

[Event "Croatian Championship 2022"]
[Site "Split"]
[Date "2022.11.30"]
[Round "2.2"]
[White "Kurajica, Bojan"]
[Black "Jovanovic, Zoran"]
[Result "1/2-1/2"]
[ECO "B07"]
[WhiteElo "2487"]
[BlackElo "2513"]
[Annotator "TA"]
[PlyCount "28"]
[EventDate "2022.11.29"]
[EventType "tourn"]
[EventCountry "CRO"]
[SourceTitle "playchess.com"]
[Source "ChessBase"]
[SourceQuality "1"]
[TimeControl "40/5400+30:1800+30"]

{[%evp 16,28,52,31,53,42,59,20,11,4,12,18,18,0,18]} 1. d4 {[%emt 0:00:05]} d6 {[%emt 0:00:07]} 2. Nf3 {[%emt 0:00:58]} g6 {[%emt 0:00:34]} 3. e4 {[%emt 0:00:26]} Nf6 {[%emt 0:00:48]} 4. Bd3 {[%emt 0:00:30]} Bg7 {[%emt 0:03:26]} 5. O-O {[%emt 0:00:20]} O-O {[%emt 0:01:31]} 6. Re1 {[%emt 0:01:40]} Nc6 {[%emt 0:02:20]} 7. h3 {[%emt 0:02:06]} e5 {[%emt 0:02:08]} 8. c3 {[%emt 0:00:44]} h6 {[%emt 0:05:42]} 9. Be3 {[%emt 0:10:32]} Nh5 {[%emt 0:10:25] B07: Pirc Defence: Miscellaneous Systems.} 10. Na3 {[%emt 0:07:15] was the old line (10.Nbd2).} a6 {[%emt 0:05:10] [#]} 11. Bf1 $146 {[%emt 0:07:36]} ({Predecessor:} 11. Nc2 b6 12. a4 Qe8 13. b4 Kh8 14. b5 axb5 15. axb5 Na5 16. Nb4 Be6 17. dxe5 dxe5 {1-0 (90) Torre,E (2447)-Ly,M (2513) Baku 2016}) 11... Re8 {[%emt 0:07:35] The position is equal.} 12. Qd2 {[%emt 0:10:47]} Kh7 {[%emt 0:14:36]} 13. dxe5 {[%emt 0:01:46]} dxe5 {[%emt 0:01:10]} 14. Qxd8 {[%emt 0:00:17]} Nxd8 {[%emt 0:00:39] Black took control after the opening.   Weighted Error Value: White=0.11 (very precise) /Black=0.04 (flawless)} 1/2-1/2

[Event "Croatian Championship 2022"]
[Site "Split"]
[Date "2022.11.30"]
[Round "2.3"]
[White "Brkic, Ante"]
[Black "Saric, Ante"]
[Result "1/2-1/2"]
[ECO "B49"]
[WhiteElo "2610"]
[BlackElo "2504"]
[Annotator "TA"]
[PlyCount "52"]
[EventDate "2022.11.29"]
[EventType "tourn"]
[EventCountry "CRO"]
[SourceTitle "playchess.com"]
[Source "ChessBase"]
[SourceQuality "1"]
[TimeControl "40/5400+30:1800+30"]

{[%evp 28,52,41,33,29,29,37,22,35,10,10,0,0,0,0,0,0,0,0,0,0,0,0,0,0,0,0]} 1. e4 {[%emt 0:00:02]} c5 {[%emt 0:00:03]} 2. Nf3 {[%emt 0:00:05]} Nc6 {[%emt 0:00:04]} 3. d4 {[%emt 0:00:06]} cxd4 {[%emt 0:00:03]} 4. Nxd4 {[%emt 0:00:05]} e6 {[%emt 0:00:04]} 5. Nc3 {[%emt 0:00:07]} Qc7 {[%emt 0:00:03]} 6. Be3 {[%emt 0:00:06]} a6 {[%emt 0:00:03]} 7. Be2 {[%emt 0:00:09]} Nf6 {[%emt 0:00:06]} 8. O-O {[%emt 0:00:06]} Bb4 {[%emt 0:00:02]} 9. Na4 {[%emt 0:00:22]} Be7 {[%emt 0:00:03]} 10. Nxc6 {[%emt 0:00:05]} bxc6 {[%emt 0:00:04]} 11. Nb6 {[%emt 0:00:09]} Rb8 {[%emt 0:00:01]} 12. Nxc8 {[%emt 0:00:08]} Qxc8 {[%emt 0:00:04]} 13. Bd4 {[%emt 0:00:09]} c5 {[%emt 0:00:05]} 14. Be5 {[%emt 0:00:05]} Rb6 {[%emt 0:00:02]} 15. Qd3 {[%emt 0:00:05]} d6 {[%emt 0:00:04] B49: Sicilian: Taimanov: 5 Nc3 Qc7 6 Be3 a6 7 Be2.} 16. Bc3 {[%emt 0:00:05]} O-O {[%emt 0:00:03]} 17. b3 {[%emt 0:00:08]} Qc6 {[%emt 0:00:04]} 18. e5 {[%emt 0:00:05]} Nd5 {[%emt 0:00:02] The position is equal.} 19. Bf3 {[%emt 0:00:06] Prevents c4.} (19. exd6 {is interesting.} Bxd6 20. Bd2 Nf4 21. Bxf4 Bxf4 22. Rad1) 19... Qb5 {[%emt 0:00:02] [#] Strongly threatening ...Qxd3.} 20. Bxd5 {[%emt 0:00:08] A strong pair of Bishops.} Qxd3 {[%emt 0:00:04]} 21. cxd3 {[%emt 0:00:05]} exd5 {[%emt 0:00:04]} 22. Rfe1 {[%emt 0:00:07]} dxe5 {[%emt 0:00:02]} 23. Bxe5 {[%emt 0:00:07] [#]} Rb7 $146 {[%emt 0:00:02]} ({Predecessor:} 23... Re6 24. Rac1 Re8 25. Bf4 Bf8 26. Rxe6 fxe6 27. Be3 Rc8 28. Kf1 Kf7 29. Ke2 Ke8 30. b4 c4 31. dxc4 Bxb4 32. cxd5 Rxc1 33. Bxc1 exd5 34. Bb2 g6 35. Bd4 {½-½ (35) Perske,T (2456)-Mihok,O (2541) Radenci 2019}) 24. Bc3 {[%emt 0:00:08]} Bd6 {[%emt 0:00:03]} 25. Be5 {[%emt 0:00:04]} Be7 {[%emt 0:00:03]} 26. Bc3 {[%emt 0:00:03]} Bd6 {[%emt 0:00:03] Weighted Error Value: White=0.05 (flawless) /Black=0.00 (flawless)} 1/2-1/2

[Event "Croatian Championship 2022"]
[Site "Split"]
[Date "2022.11.30"]
[Round "2.4"]
[White "Saric, Ivan"]
[Black "Doric, Darko"]
[Result "1/2-1/2"]
[ECO "B45"]
[WhiteElo "2674"]
[BlackElo "2446"]
[Annotator "TA"]
[PlyCount "64"]
[EventDate "2022.11.29"]
[EventType "tourn"]
[EventCountry "CRO"]
[SourceTitle "playchess.com"]
[Source "ChessBase"]
[SourceQuality "1"]
[TimeControl "40/5400+30:1800+30"]

{[%evp 21,64,32,28,27,40,25,39,29,25,16,17,25,35,39,56,54,54,43,43,43,43,10,10,0,30,0,16,0,0,0,0,0,0,0,0,0,0,0,0,0,0,0,0,0,0]} 1. e4 {[%emt 0:00:02]} c5 {[%emt 0:04:41]} 2. Nf3 {[%emt 0:00:08]} e6 {[%emt 0:00:15]} 3. d4 {[%emt 0:00:56]} cxd4 {[%emt 0:00:07]} 4. Nxd4 {[%emt 0:00:02]} Nf6 {[%emt 0:00:10][%cal Bg8f6,Bf6d5,Bd5e3][%mdl 32]} 5. Nc3 {[%emt 0:00:05]} Nc6 {[%emt 0:00:07]} 6. Nxc6 {[%emt 0:01:11]} bxc6 {[%emt 0:00:10]} 7. e5 {[%emt 0:00:03]} Nd5 {[%emt 0:00:08]} 8. Ne4 {[%emt 0:00:03]} Qc7 {[%emt 0:00:15]} 9. f4 {[%emt 0:00:05]} Qb6 {[%emt 0:00:22]} 10. c4 {[%emt 0:01:01]} Ne3 {[%emt 0:00:34]} 11. Qd3 {[%emt 0:00:29]} Bb4+ {[%emt 0:00:18]} 12. Bd2 {[%emt 0:00:23] B45: Sicilian Four Knights.} Ba6 {[%emt 0:01:27]} 13. b3 {[%emt 0:12:27]} (13. Bxb4 {keeps more tension.} Qxb4+ 14. Kf2 Qxb2+ 15. Be2) 13... O-O {[%emt 1:28:26]} 14. Bxb4 {[%emt 0:03:07] White is slightly better.} Qxb4+ {[%emt 0:00:00]} 15. Kf2 {[%emt 0:00:15]} Nd5 {[%emt 0:00:00]} 16. g3 {[%emt 0:20:36]} f6 {[%emt 0:00:00] [#] White must now prevent ...Qb6+.} 17. Qd2 {[%emt 0:07:00] [#]} Qb6+ $146 {[%emt 0:00:00]} ({Predecessor:} 17... fxe5 18. cxd5 Qxe4 19. Bxa6 exf4 20. g4 cxd5 21. Rae1 Qg6 22. Kf3 Rab8 23. Qd3 Qf6 {0-1 (41) Petr,M (2451)-Biolek,R (2434) Czech Republic 2008}) 18. c5 {[%emt 0:02:19]} Qb4 {[%emt 0:00:00]} 19. Qxb4 {[%emt 0:01:05]} Nxb4 {[%emt 0:00:00]} 20. exf6 {[%emt 0:04:58]} gxf6 {[%emt 0:00:00]} 21. Bxa6 {[%emt 0:02:25]} (21. a3 $5 {[%cal Ra3b4]} Bxf1 22. axb4 $14) 21... Nxa6 {[%emt 0:00:00]} 22. Rac1 {[%emt 0:00:05]} Nb4 {[%emt 0:00:00]} 23. Rhd1 {[%emt 0:00:12] Inhibits Nd3+.} (23. Rc4 $5 {[%cal Rc4b4]} a5 24. Rd1 $11) 23... Nd5 {[%emt 0:00:00] The position is equal.} 24. Rd4 {[%emt 0:08:50][%cal Of4f5]} f5 {[%emt 0:00:00]} 25. Nd6 {[%emt 0:08:41]} a5 {[%emt 0:00:00]} 26. Ra4 {[%emt 0:02:06]} Rfb8 {[%emt 0:00:00]} 27. Nc4 {[%emt 0:00:21]} Rb5 {[%emt 0:00:00]} 28. Ne5 {[%emt 0:00:28]} Nf6 {[%emt 0:00:00]} 29. Kf3 {[%emt 0:01:00]} Kf8 {[%emt 0:00:00]} 30. Rd4 {[%emt 0:07:19]} Ke7 {[%emt 0:00:00][%cal Oa5a4]} 31. Nd3 {[%emt 0:02:33]} Nd5 {[%emt 0:00:00]} 32. Ra4 {[%emt 0:06:09]} Rg8 {[%emt 0:00:00] Weighted Error Value: White=0.05 (flawless) /Black=0.05 (flawless)} 1/2-1/2

[Event "Croatian Championship 2022"]
[Site "Split"]
[Date "2022.11.30"]
[Round "2.5"]
[White "Zelcic, Robert"]
[Black "Kozul, Zdenko"]
[Result "0-1"]
[ECO "B81"]
[WhiteElo "2496"]
[BlackElo "2539"]
[Annotator "TA"]
[PlyCount "54"]
[EventDate "2022.11.29"]
[EventType "tourn"]
[EventCountry "CRO"]
[SourceTitle "playchess.com"]
[Source "ChessBase"]
[SourceQuality "1"]
[TimeControl "40/5400+30:1800+30"]

{[%evp 18,54,46,49,46,30,44,0,0,0,14,-25,0,-94,-81,-89,-80,-70,-93,-100,-95,-291,-283,-420,-408,-746,-751,-1349,-1344,-1320,-1317,-1303,-1266,-1606,-1100,-29981,-29982,-29989,-29990]} 1. e4 {[%emt 0:00:04]} c5 {[%emt 0:00:08]} 2. Nf3 {[%emt 0:00:03]} e6 {[%emt 0:00:46]} 3. d4 {[%emt 0:00:29]} cxd4 {[%emt 0:00:07]} 4. Nxd4 {[%emt 0:00:02]} Nf6 {[%emt 0:01:17]} 5. Nc3 {[%emt 0:00:04]} d6 {[%emt 0:00:09]} 6. g4 {[%emt 0:01:18]} e5 {[%emt 0:02:33]} 7. Bb5+ {[%emt 0:00:50]} Bd7 {[%emt 0:00:39]} 8. Bxd7+ {[%emt 0:01:45]} Qxd7 {[%emt 0:00:09]} 9. Nf5 {[%emt 0:00:05]} h5 {[%emt 0:00:21]} 10. gxh5 {[%emt 0:00:32]} (10. Bg5 {with more complications.} Nh7 11. f4 g6 12. Ne3) 10... Nxh5 {[%emt 0:08:39] B81: Sicilian Scheveningen: Keres Attack.} 11. Be3 {[%emt 0:00:16] 11.Nd5 gains popularity.} Na6 {[%emt 0:35:30]} 12. Qe2 {[%emt 0:13:06] next 0-0-0 is good for White.} g6 {[%emt 0:02:21] The position is equal.} 13. Ng3 {[%emt 0:00:06]} Nf4 {[%emt 0:01:33]} 14. Qf3 {[%emt 0:15:02] [#]} Rc8 $5 $146 {[%emt 0:01:24][%mdl 8] New and interesting.} ({Predecessor:} 14... Rh4 15. O-O-O Nc7 16. Kb1 Qc6 17. Bxf4 Rxf4 18. Qe2 Rh4 19. Nd5 Nxd5 20. Rxd5 Rc8 {1-0 (42) Chen,Q (2425)-Nigmatov,O (2456) Xingtai 2018}) 15. Rd1 {[%emt 0:04:20]} (15. Bxa7 $2 {too greedy.} b6 16. Bxb6 Qb7 $19) (15. h4 $11 {keeps the balance.}) 15... Rh4 $17 {[%emt 0:02:45] Black is more active.} 16. Bxf4 {[%emt 0:03:31]} exf4 {[%emt 0:03:59][%cal Be5f4,Bf4f3][%mdl 32]} ({Reject} 16... Rxf4 $6 17. Qe3 $15) 17. Nge2 {[%emt 0:02:05]} Bg7 {[%emt 0:02:45]} 18. a3 {[%emt 0:18:33] Against Nb4} Be5 {[%emt 0:02:00] [#] aiming for ...Rh3.} 19. Qd3 {[%emt 0:06:50]} (19. h3 $17) 19... Nc5 $19 {[%emt 0:02:53]} 20. Qd5 {[%emt 0:06:45]} (20. Qb5 {only move.}) 20... f3 $1 {[%emt 0:08:02][%csl LRe2,LRh2]} 21. Nd4 {[%emt 0:05:34]} (21. Qxe5+ $142 dxe5 22. Rxd7 Kxd7 23. Ng1) 21... Qg4 {[%emt 0:02:46]} ({Worse is} 21... Rxh2 22. Rxh2 Bxh2 23. Nxf3 $11) 22. Ndb5 {[%emt 0:05:49]} Rxh2 {[%emt 0:01:24]} 23. Rf1 {[%emt 0:00:58]} Qh3 {[%emt 0:01:39][%cal Oh3f1] ( -> ...Qxf1+!)} 24. Qc4 {[%emt 0:02:28] [#]} Nxe4 $1 {[%emt 0:03:56][%mdl 512]} 25. Qd3 {[%emt 0:02:50]} (25. Qxe4 Qxf1+) 25... Nxc3 {[%emt 0:01:00]} 26. bxc3 {[%emt 0:02:56]} Kf8 {[%emt 0:01:44]} 27. Rb1 {[%emt 0:02:52]} Re8 {[%emt 0:00:54] White did not feel at home in the position after the opening.   Weighted Error Value: White=1.16/Black=0.44} 0-1

[Event "Croatian Championship 2022"]
[Site "Split"]
[Date "2022.11.30"]
[Round "2.6"]
[White "Bukal, Vladimir Jr."]
[Black "Bosiocic, Marin"]
[Result "0-1"]
[ECO "B07"]
[WhiteElo "2411"]
[BlackElo "2536"]
[Annotator "TA"]
[PlyCount "64"]
[EventDate "2022.11.29"]
[EventType "tourn"]
[EventCountry "CRO"]
[SourceTitle "playchess.com"]
[Source "ChessBase"]
[SourceQuality "1"]
[TimeControl "40/5400+30:1800+30"]

{[%evp 20,64,18,-24,-16,-18,-6,-13,-14,-11,-9,-28,0,-29,0,0,24,19,28,23,56,81,62,61,53,56,58,58,156,144,137,135,132,69,69,69,70,0,0,0,0,0,0,0,0,-29982,-29983]} 1. d4 {[%emt 0:00:03]} d6 {[%emt 0:00:15]} 2. g3 {[%emt 0:01:00]} g6 {[%emt 0:00:57]} 3. Bg2 {[%emt 0:00:12]} Bg7 {[%emt 0:00:05]} 4. e4 {[%emt 0:00:20]} Nf6 {[%emt 0:00:07]} 5. Nc3 {[%emt 0:00:12]} O-O {[%emt 0:00:10]} 6. Nge2 {[%emt 0:00:09]} e5 {[%emt 0:00:28]} 7. h3 {[%emt 0:03:11]} Nc6 {[%emt 0:03:45]} 8. Be3 {[%emt 0:02:34]} exd4 {[%emt 0:01:36]} 9. Nxd4 {[%emt 0:00:07]} Bd7 {[%emt 0:00:10]} 10. O-O {[%emt 0:00:18]} Re8 {[%emt 0:00:07]} 11. Nde2 {[%emt 0:15:54]} b5 {[%emt 0:05:36] B07: Pirc Defence: Miscellaneous Systems.} 12. Nxb5 {[%emt 0:13:09] [#]} Rb8 $146 {[%emt 0:00:11]} ({Predecessor:} 12... Nxe4 13. Nbd4 {½-½ (13) Meszaros,M (2383)-Petenyi,T (2450) Slovakia 2016}) 13. Nbc3 {[%emt 0:13:42]} Rxb2 {[%emt 0:00:45] The position is equal.} 14. Rb1 {[%emt 0:03:51]} Rxb1 {[%emt 0:05:25]} 15. Qxb1 {[%emt 0:00:12]} Ne5 {[%emt 0:01:52]} 16. Qb3 {[%emt 0:01:54]} Be6 {[%emt 0:07:14]} 17. Qa4 {[%emt 0:00:47]} Qc8 {[%emt 0:00:22]} 18. Nf4 $1 {[%emt 0:11:12]} Bd7 {[%emt 0:00:49]} 19. Qxa7 {[%emt 0:01:16]} g5 {[%emt 0:05:07]} 20. Nfd5 {[%emt 0:02:04]} Nxd5 {[%emt 0:05:02]} 21. Nxd5 {[%emt 0:00:08]} Bxh3 {[%emt 0:00:33] [#] White must now prevent ...Qg4.} 22. Bxg5 {[%emt 0:02:59][%cal Og5f6]} (22. Qxc7 Qg4 23. Ne7+ (23. Qxd6 $2 Nf3+ 24. Kh1 Nh4 $19) (23. Bxh3 $2 Qxh3 24. f3 Qxg3+ 25. Kh1 Nxf3 $19) 23... Kf8 24. Qxd6 (24. Bxh3 $2 Qxh3 $19) 24... Nf3+ 25. Kh1 (25. Bxf3 Qxf3 26. Ng6+ Kg8 27. Ne7+ Kh8) 25... Qh5 26. Bxg5 Nxg5 27. Nf5+ Kg8 $19) 22... Qg4 {[%emt 0:01:18] Hoping for ...Nf3+.} 23. Qe3 {[%emt 0:01:21] Against Nf3+} (23. Nxc7 $2 Nf3+ 24. Kh1 Nxg5 $19) 23... Ng6 {[%emt 0:13:45]} (23... Nc4 $14 24. Bxh3 Qxh3) 24. Rb1 {[%emt 0:04:18]} (24. Nxc7 Re5 25. Bxh3 (25. f4 $2 Rc5 $19) 25... Qxh3 $11) 24... Bxg2 {[%emt 0:01:04]} 25. Kxg2 {[%emt 0:00:07]} h6 {[%emt 0:04:59]} 26. Nf6+ {[%emt 0:09:38]} (26. Nxc7 $2 {is the wrong capture.} Rxe4 27. Rb8+ Kh7 $19) ({Reject} 26. Bxh6 $6 Nh4+ 27. Kh2 Rxe4 28. Bxg7 Nf3+ 29. Kg2 Nh4+ 30. Kh2 Nf3+ 31. Kg2 Nh4+ 32. Kh2 $11) (26. Bf6 $16) 26... Bxf6 $14 {[%emt 0:00:14]} 27. Bxf6 {[%emt 0:00:05]} Qe6 {[%emt 0:00:40]} 28. Qf3 {[%emt 0:04:52]} ({White should try} 28. Bc3 $14) 28... Qxa2 $11 {[%emt 0:02:05]} 29. Re1 {[%emt 0:01:05]} Qxc2 {[%emt 0:02:39]} 30. Ba1 {[%emt 0:05:21]} Re6 {[%emt 0:06:07]} 31. Qe3 {[%emt 0:00:25]} h5 {[%emt 0:00:20]} 32. Qh6 $2 {[%emt 0:00:56][%mdl 8192] [#]} (32. Qg5 $11) 32... Nh4+ $1 {[%emt 0:01:19][%mdl 512] Black used his chance.   Weighted Error Value: White=0.39/Black=0.11 (very precise)} 0-1